[Event "Kvibergspelen 2018"]
[Site "Prioritet Serneke Arena, Krutvagen 2, Gothenburg, Sweden"]
[Date "2018.04.21"]
[Round "6.16"]
[White "Fransson, Lennart"]
[Black "Naslund, Mikael"]
[Result "0-1"]
[TimeControl "15 minutes + 5 seconds per move from move one (Round 1 - 4) / 90 minutes + 30 seconds per move from move one (Round 5 - 8)"]
[BlackTitle "FM"]
[WhiteFideId "1706756"]
[BlackFideId "1708260"]
[WhiteElo "2035"]
[BlackElo "2224"]

1. c4 {[%clk 01:30:55]} {[%emt 00:00:03]} e6 {[%clk 01:30:28]} {[%emt
00:00:33]} 2. g3 {[%clk 01:31:16]} {[%emt 00:00:08]} d5 {[%clk 01:30:38]}
{[%emt 00:00:21]} 3. Bg2 {[%clk 01:31:38]} {[%emt 00:00:07]} Nf6 {[%clk
01:30:52]} {[%emt 00:00:17]} 4. Nf3 {[%clk 01:31:54]} {[%emt 00:00:14]} dxc4
{[%clk 01:30:18]} {[%emt 00:01:04]} 5. Qa4+ {[%clk 01:26:51]} {[%emt 00:05:31]}
Nbd7 {[%clk 01:29:06]} {[%emt 00:01:43]} 6. Qxc4 {[%clk 01:27:10]} {[%emt
00:00:12]} a6 {[%clk 01:29:11]} {[%emt 00:00:25]} 7. a4 {[%clk 01:27:04]}
{[%emt 00:00:35]} b5 {[%clk 01:28:40]} {[%emt 00:01:00]} 8. Qc2 {[%clk
01:20:53]} {[%emt 00:14:56]} Bb7 {[%clk 01:27:31]} 9. O-O {[%clk 01:20:39]} Be7
{[%clk 01:24:57]} {[%emt 00:00:01]} 10. b3 {[%clk 01:17:55]} {[%emt 00:00:25]}
O-O {[%clk 01:23:19]} {[%emt 00:02:08]} 11. d3 {[%clk 01:18:12]} {[%emt
00:00:12]} c5 {[%clk 01:15:31]} {[%emt 00:08:19]} 12. Nc3 {[%clk 01:12:46]}
{[%emt 00:05:56]} Nd5 {[%clk 01:04:00]} {[%emt 00:12:01]} 13. Nxd5 {[%clk
01:11:08]} {[%emt 00:02:08]} Bxd5 {[%clk 01:02:11]} {[%emt 00:02:20]} 14. e4
{[%clk 01:05:42]} {[%emt 00:05:55]} Bb7 {[%clk 01:01:48]} {[%emt 00:00:53]} 15.
Be3 {[%clk 01:05:05]} {[%emt 00:01:07]} Qb6 {[%clk 00:58:27]} {[%emt 00:03:52]}
16. Rfd1 {[%clk 01:01:38]} {[%emt 00:03:56]} Rac8 {[%clk 00:55:00]} {[%emt
00:03:58]} 17. h3 {[%clk 00:59:58]} {[%emt 00:02:09]} Rfd8 {[%clk 00:53:51]}
{[%emt 00:01:41]} 18. Qe2 {[%clk 00:59:48]} {[%emt 00:00:39]} e5 {[%clk
00:49:10]} {[%emt 00:05:11]} 19. Qa2 {[%clk 00:51:04]} {[%emt 00:09:13]} Qc7
{[%clk 00:47:21]} {[%emt 00:02:20]} 20. Rac1 {[%clk 00:50:33]} {[%emt
00:01:01]} Qb8 {[%clk 00:47:25]} {[%emt 00:00:26]} 21. Rc2 {[%clk 00:49:48]}
{[%emt 00:01:15]} Nf8 {[%clk 00:45:32]} {[%emt 00:02:23]} 22. h4 {[%clk
00:40:27]} {[%emt 00:09:50]} Rc6 {[%clk 00:42:22]} {[%emt 00:03:41]} 23. Qb2
{[%clk 00:39:44]} {[%emt 00:01:14]} f6 {[%clk 00:39:00]} {[%emt 00:03:53]} 24.
Ne1 {[%clk 00:37:45]} {[%emt 00:02:28]} Ne6 {[%clk 00:36:32]} {[%emt 00:02:58]}
25. axb5 {[%clk 00:37:24]} {[%emt 00:00:50]} axb5 {[%clk 00:36:55]} {[%emt
00:00:07]} 26. Rdc1 {[%clk 00:37:19]} {[%emt 00:00:36]} Nd4 {[%clk 00:36:03]}
{[%emt 00:01:22]} 27. Bxd4 {[%clk 00:37:29]} {[%emt 00:00:19]} Rxd4 {[%clk
00:36:02]} {[%emt 00:00:32]} 28. Rd2 {[%clk 00:36:57]} {[%emt 00:01:02]} Qd8
{[%clk 00:35:31]} {[%emt 00:01:00]} 29. Bf1 {[%clk 00:34:38]} {[%emt 00:02:48]}
Bc8 {[%clk 00:31:50]} {[%emt 00:04:12]} 30. Nc2 {[%clk 00:31:41]} {[%emt
00:03:27]} Rdd6 {[%clk 00:31:07]} {[%emt 00:01:14]} 31. Ne3 {[%clk 00:28:02]}
{[%emt 00:04:08]} Be6 {[%clk 00:30:06]} {[%emt 00:01:31]} 32. Rdd1 {[%clk
00:23:45]} {[%emt 00:04:47]} Rc7 {[%clk 00:26:51]} {[%emt 00:03:46]} 33. b4
{[%clk 00:20:52]} {[%emt 00:03:23]} cxb4 {[%clk 00:22:53]} {[%emt 00:04:28]} 34.
Rxc7 {[%clk 00:19:54]} {[%emt 00:01:28]} Qxc7 {[%clk 00:23:22]} {[%emt
00:00:01]} 35. Qxb4 {[%clk 00:19:54]} {[%emt 00:00:29]} Rb6 {[%clk 00:23:07]}
{[%emt 00:00:45]} 36. Qb2 {[%clk 00:18:12]} {[%emt 00:02:12]} Bc5 {[%clk
00:19:22]} {[%emt 00:04:14]} 37. Nc2 {[%clk 00:17:23]} {[%emt 00:01:19]} b4
{[%clk 00:19:07]} {[%emt 00:00:46]} 38. d4 {[%clk 00:17:11]} {[%emt 00:00:41]}
exd4 {[%clk 00:17:22]} {[%emt 00:02:15]} 39. Nxd4 {[%clk 00:17:32]} {[%emt
00:00:09]} Qe5 {[%clk 00:15:56]} {[%emt 00:01:55]} 40. Nxe6 {[%clk 00:14:20]}
{[%emt 00:03:42]} Qxb2 {[%clk 00:13:02]} {[%emt 00:03:25]} 41. Nxc5 {[%clk
00:14:25]} {[%emt 00:00:24]} Rb8 {[%clk 00:10:17]} {[%emt 00:03:16]} 42. Bc4+
{[%clk 00:08:55]} {[%emt 00:05:59]} Kh8 {[%clk 00:10:35]} {[%emt 00:00:13]} 43.
Bb3 {[%clk 00:07:21]} {[%emt 00:02:04]} Qc3 {[%clk 00:10:33]} {[%emt 00:00:33]}
44. Rd5 {[%clk 00:07:31]} {[%emt 00:00:19]} g6 {[%emt 00:01:08]} 0-1

[Event "Kvibergspelen 2018"]
[Site "Prioritet Serneke Arena, Krutvagen 2, Gothenburg, Sweden"]
[Date "2018.04.21"]
[Round "6.17"]
[White "Fransson, Patrick"]
[Black "Nguyen, Gabriel"]
[Result "1-0"]
[TimeControl "15 minutes + 5 seconds per move from move one (Round 1 - 4) / 90 minutes + 30 seconds per move from move one (Round 5 - 8)"]
[WhiteFideId "1709305"]
[BlackFideId "1720791"]
[WhiteElo "2176"]
[BlackElo "2024"]

1. d4 {[%clk 01:30:57]} {[%emt 00:00:02]} g6 {[%clk 01:30:56]} {[%emt
00:00:04]} 2. e4 {[%clk 01:30:30]} {[%emt 00:00:57]} Bg7 {[%clk 01:31:17]}
{[%emt 00:00:09]} 3. c4 {[%clk 01:29:22]} {[%emt 00:01:37]} d6 {[%clk
01:31:08]} {[%emt 00:00:40]} 4. Nc3 {[%clk 01:29:31]} {[%emt 00:00:21]} Nf6
{[%clk 01:31:29]} {[%emt 00:00:09]} 5. f3 {[%clk 01:28:31]} {[%emt 00:01:30]}
O-O {[%clk 01:31:45]} {[%emt 00:00:14]} 6. Be3 {[%clk 01:27:56]} {[%emt
00:01:04]} Nc6 {[%clk 01:29:08]} {[%emt 00:03:08]} 7. Qd2 {[%clk 01:27:55]}
{[%emt 00:00:31]} a6 {[%clk 01:29:27]} {[%emt 00:00:11]} 8. Bd3 {[%clk
01:21:21]} {[%emt 00:07:03]} Nd7 {[%clk 01:16:16]} {[%emt 00:13:42]} 9. Nge2
{[%clk 01:21:09]} {[%emt 00:00:42]} e5 {[%clk 01:16:33]} {[%emt 00:00:13]} 10.
d5 {[%clk 01:19:00]} {[%emt 00:02:39]} Nd4 {[%clk 01:15:24]} {[%emt 00:01:37]}
11. O-O {[%clk 01:17:35]} {[%emt 00:01:56]} c5 {[%clk 01:03:06]} {[%emt
00:12:48]} 12. f4 {[%clk 01:08:28]} {[%emt 00:09:37]} exf4 {[%clk 00:53:15]}
{[%emt 00:10:22]} 13. Bxf4 {[%clk 01:06:25]} {[%emt 00:02:33]} Ne5 {[%clk
00:38:14]} {[%emt 00:15:31]} 14. Nxd4 {[%clk 01:01:30]} {[%emt 00:05:25]} cxd4
{[%clk 00:38:31]} {[%emt 00:00:13]} 15. Ne2 {[%clk 01:01:48]} {[%emt 00:00:12]}
Qb6 {[%clk 00:37:58]} {[%emt 00:01:04]} 16. Rab1 {[%clk 00:59:57]} {[%emt
00:02:21]} Bg4 {[%clk 00:31:10]} {[%emt 00:07:17]} 17. Kh1 {[%clk 00:55:12]}
{[%emt 00:05:15]} Rac8 {[%clk 00:27:21]} {[%emt 00:04:20]} 18. h3 {[%clk
00:53:27]} {[%emt 00:02:14]} Bd7 {[%clk 00:25:00]} {[%emt 00:02:51]} 19. b3
{[%clk 00:49:12]} {[%emt 00:04:46]} Rce8 {[%clk 00:22:06]} {[%emt 00:03:24]} 20.
Rbe1 {[%clk 00:39:28]} {[%emt 00:10:13]} h5 {[%clk 00:21:08]} {[%emt 00:01:29]}
21. Bb1 {[%clk 00:38:51]} {[%emt 00:01:07]} d3 {[%clk 00:19:57]} {[%emt
00:01:40]} 22. Ng1 {[%clk 00:35:34]} {[%emt 00:03:47]} f5 {[%clk 00:14:58]}
{[%emt 00:05:30]} 23. Bxe5 {[%clk 00:34:44]} {[%emt 00:01:21]} dxe5 {[%clk
00:14:10]} {[%emt 00:01:18]} 24. Bxd3 {[%clk 00:32:24]} {[%emt 00:02:49]} f4
{[%clk 00:14:34]} {[%emt 00:00:07]} 25. Rc1 {[%clk 00:31:01]} {[%emt 00:01:53]}
g5 {[%clk 00:14:31]} {[%emt 00:00:32]} 26. c5 {[%clk 00:30:12]} {[%emt
00:01:20]} Qf6 {[%clk 00:14:01]} {[%emt 00:01:00]} 27. Be2 {[%clk 00:29:01]}
{[%emt 00:01:41]} g4 {[%clk 00:13:41]} {[%emt 00:00:50]} 28. Rc3 {[%clk
00:28:06]} {[%emt 00:01:26]} Bh6 {[%clk 00:11:38]} {[%emt 00:02:32]} 29. Qd1
{[%clk 00:25:58]} {[%emt 00:02:38]} Qg6 {[%clk 00:10:33]} {[%emt 00:01:36]} 30.
c6 {[%clk 00:24:00]} {[%emt 00:02:28]} bxc6 {[%clk 00:10:32]} {[%emt 00:00:31]}
31. dxc6 {[%clk 00:24:21]} {[%emt 00:00:09]} Bxc6 {[%clk 00:10:22]} {[%emt
00:00:40]} 32. hxg4 {[%clk 00:23:13]} {[%emt 00:01:38]} hxg4 {[%clk 00:03:32]}
{[%emt 00:07:19]} 33. Bxg4 {[%clk 00:22:12]} {[%emt 00:01:31]} Rd8 {[%clk
00:04:00]} {[%emt 00:00:02]} 34. Qe2 {[%clk 00:21:21]} {[%emt 00:01:21]} Bb5
{[%clk 00:04:21]} {[%emt 00:00:09]} 35. Rc4 {[%clk 00:21:29]} {[%emt 00:00:22]}
f3 {[%clk 00:03:09]} {[%emt 00:01:42]} 36. Rxf3 {[%clk 00:17:37]} {[%emt
00:04:22]} Rxf3 {[%clk 00:03:16]} {[%emt 00:00:23]} 37. Qxf3 {[%clk 00:17:56]}
{[%emt 00:00:11]} Bxc4 {[%clk 00:03:38]} {[%emt 00:00:08]} 38. bxc4 {[%clk
00:17:55]} {[%emt 00:00:32]} Rf8 {[%clk 00:02:48]} {[%emt 00:01:20]} 39. Bf5
{[%clk 00:17:30]} {[%emt 00:00:55]} Qg5 {[%clk 00:02:58]} {[%emt 00:00:20]} 40.
Nh3 {[%clk 00:16:47]} {[%emt 00:01:13]} Qc1 {[%clk 00:03:19]} {[%emt 00:00:09]}
41. Kh2 {[%clk 00:17:13]} {[%emt 00:00:04]} Qxc4 {[%clk 00:02:42]} {[%emt
00:01:07]} 42. Qg4+ {[%clk 00:16:46]} {[%emt 00:00:57]} Kh8 {[%clk 00:02:23]}
{[%emt 00:00:50]} 43. Qg6 {[%clk 00:17:08]} {[%emt 00:00:08]} Rxf5 {[%clk
00:02:42]} {[%emt 00:00:12]} 44. Qxh6 {[%clk 00:17:00]} {[%emt 00:00:07]} Kg8
{[%clk 00:03:05]} {[%emt 00:00:07]} 45. Qg6+ {[%clk 00:17:22]} {[%emt
00:00:39]} Kh8 {[%clk 00:03:29]} {[%emt 00:00:05]} 46. Qxf5 {[%clk 00:17:42]}
{[%emt 00:00:10]} Qxa2 {[%clk 00:03:47]} {[%emt 00:00:12]} 47. Qxe5 {[%clk
00:16:24]} {[%emt 00:01:48]} Kh7 {[%clk 00:04:05]} {[%emt 00:00:12]} 48. Qf5
{[%clk 00:16:43]} {[%emt 00:00:11]} Kg7 {[%clk 00:04:28]} {[%emt 00:00:06]} 49.
Nf4 {[%clk 00:16:33]} {[%emt 00:00:41]} Qd2 {[%clk 00:03:36]} {[%emt 00:01:22]}
50. e5 {[%clk 00:13:46]} {[%emt 00:03:18]} Qe1 {[%clk 00:03:38]} {[%emt
00:00:28]} 51. Qf6+ {[%clk 00:13:53]} {[%emt 00:00:22]} Kg8 {[%clk 00:04:01]}
{[%emt 00:00:04]} 52. e6 {[%clk 00:14:04]} {[%emt 00:00:22]} 1-0

[Event "Kvibergspelen 2018"]
[Site "Prioritet Serneke Arena, Krutvagen 2, Gothenburg, Sweden"]
[Date "2018.04.21"]
[Round "6.18"]
[White "Berg, Roy"]
[Black "Bengtsson, Siv"]
[Result "1-0"]
[TimeControl "15 minutes + 5 seconds per move from move one (Round 1 - 4) / 90 minutes + 30 seconds per move from move one (Round 5 - 8)"]
[WhiteFideId "1711458"]
[BlackFideId "1701673"]
[WhiteElo "1961"]
[BlackElo "2125"]

1. d4 {[%clk 01:30:58]} {[%emt 00:00:01]} Nf6 {[%clk 01:30:52]} {[%emt
00:00:09]} 2. Nf3 {[%clk 01:31:20]} {[%emt 00:00:08]} g6 {[%clk 01:29:59]}
{[%emt 00:01:23]} 3. g3 {[%clk 01:31:35]} {[%emt 00:00:15]} Bg7 {[%clk
01:30:14]} {[%emt 00:00:14]} 4. Bg2 {[%clk 01:31:58]} {[%emt 00:00:08]} d5
{[%clk 01:30:17]} {[%emt 00:00:27]} 5. c4 {[%clk 01:31:46]} {[%emt 00:00:42]}
O-O {[%clk 01:30:01]} {[%emt 00:00:47]} 6. O-O {[%clk 01:32:06]} {[%emt
00:00:08]} Nc6 {[%clk 01:26:26]} {[%emt 00:04:06]} 7. cxd5 {[%clk 01:26:32]}
{[%emt 00:06:05]} Nxd5 {[%clk 01:26:48]} {[%emt 00:00:08]} 8. Nc3 {[%clk
01:26:28]} {[%emt 00:00:33]} Nb6 {[%clk 01:23:52]} {[%emt 00:11:55]} 9. e3
{[%clk 01:24:16]} e5 {[%clk 01:18:38]} {[%emt 00:00:02]} 10. d5 {[%clk
01:19:08]} {[%emt 00:05:34]} Ne7 {[%clk 01:15:31]} {[%emt 00:03:37]} 11. e4
{[%clk 01:16:14]} {[%emt 00:03:24]} Bd7 {[%clk 01:12:44]} {[%emt 00:03:17]} 12.
Bg5 {[%clk 01:10:02]} {[%emt 00:06:41]} Nc4 {[%clk 01:08:17]} {[%emt 00:04:58]}
13. Qe2 {[%clk 01:09:43]} {[%emt 00:00:48]} Nd6 {[%clk 01:08:38]} {[%emt
00:00:08]} 14. Nd2 {[%clk 01:07:29]} {[%emt 00:02:45]} f6 {[%clk 01:05:46]}
{[%emt 00:03:23]} 15. Be3 {[%clk 01:07:41]} {[%emt 00:00:17]} f5 {[%clk
01:05:13]} {[%emt 00:01:04]} 16. f3 {[%clk 01:06:17]} {[%emt 00:01:54]} c6
{[%clk 00:55:48]} {[%emt 00:09:55]} 17. Bc5 {[%clk 01:02:12]} {[%emt 00:04:36]}
Qc7 {[%clk 00:54:01]} {[%emt 00:02:17]} 18. Nc4 {[%clk 00:59:56]} {[%emt
00:02:45]} Nec8 {[%clk 00:50:53]} {[%emt 00:03:38]} 19. Nxd6 {[%clk 00:48:40]}
{[%emt 00:11:46]} Nxd6 {[%clk 00:51:15]} {[%emt 00:00:08]} 20. Rad1 {[%clk
00:44:38]} {[%emt 00:04:32]} Rf6 {[%clk 00:49:02]} {[%emt 00:02:43]} 21. Be3
{[%clk 00:40:25]} {[%emt 00:04:43]} c5 {[%clk 00:45:51]} {[%emt 00:03:42]} 22.
f4 {[%emt 00:04:23]} Rf7 {[%clk 00:42:41]} {[%emt 00:03:36]} 23. h4 {[%clk
00:34:35]} {[%emt 00:02:30]} Re8 {[%clk 00:39:04]} {[%emt 00:04:07]} 24. Qc2
{[%clk 00:24:44]} {[%emt 00:10:21]} b5 {[%clk 00:32:49]} {[%emt 00:06:45]} 25.
a4 {[%clk 00:22:00]} {[%emt 00:03:14]} a6 {[%clk 00:26:37]} {[%emt 00:06:41]}
26. b3 {[%clk 00:20:14]} {[%emt 00:02:17]} c4 {[%clk 00:22:44]} {[%emt
00:04:23]} 27. axb5 {[%clk 00:15:12]} {[%emt 00:05:32]} axb5 {[%clk 00:23:06]}
{[%emt 00:00:08]} 28. b4 {[%clk 00:15:22]} {[%emt 00:00:21]} fxe4 {[%clk
00:19:15]} {[%emt 00:04:20]} 29. fxe5 {[%clk 00:10:25]} {[%emt 00:05:27]} Rxf1+
{[%clk 00:14:55]} {[%emt 00:04:49]} 30. Rxf1 {[%clk 00:10:49]} {[%emt
00:00:06]} Bxe5 {[%clk 00:14:58]} {[%emt 00:00:26]} 31. Nxe4 {[%clk 00:08:53]}
{[%emt 00:02:27]} Nf5 {[%clk 00:08:09]} {[%emt 00:07:19]} 32. Bc5 {[%clk
00:06:36]} {[%emt 00:02:48]} Nxg3 {[%clk 00:06:10]} {[%emt 00:02:28]} 33. d6
{[%clk 00:06:06]} {[%emt 00:01:00]} Qd8 {[%clk 00:06:15]} {[%emt 00:00:23]} 34.
Nxg3 {[%clk 00:03:10]} {[%emt 00:03:29]} Bxg3 {[%clk 00:06:43]} {[%emt
00:00:01]} 35. Bd5+ {[%clk 00:03:06]} {[%emt 00:00:34]} Be6 {[%clk 00:05:05]}
{[%emt 00:02:08]} 36. Qe4 {[%clk 00:02:32]} {[%emt 00:01:05]} Qc8 {[%clk
00:02:55]} {[%emt 00:02:40]} 37. Kg2 {[%clk 00:01:51]} {[%emt 00:01:11]} Bxh4
{[%clk 00:03:01]} {[%emt 00:00:23]} 38. Bxe6+ {[%clk 00:02:04]} {[%emt
00:00:17]} Qxe6 {[%clk 00:03:29]} {[%emt 00:00:02]} 39. Qxh4 {[%clk 00:02:18]}
{[%emt 00:00:16]} Qd5+ {[%clk 00:03:57]} {[%emt 00:00:02]} 40. Kg1 {[%clk
00:01:15]} {[%emt 00:01:33]} Re4 {[%clk 00:03:28]} {[%emt 00:01:00]} 41. Qd8+
{[%clk 00:01:30]} {[%emt 00:00:15]} Kg7 {[%clk 00:03:56]} {[%emt 00:00:01]} 42.
Qf8+ {[%clk 00:01:47]} {[%emt 00:00:13]} 1-0

[Event "Kvibergspelen 2018"]
[Site "Prioritet Serneke Arena, Krutvagen 2, Gothenburg, Sweden"]
[Date "2018.04.21"]
[Round "6.19"]
[White "Strom, Leif"]
[Black "Larsson, Patrik"]
[Result "1/2-1/2"]
[TimeControl "15 minutes + 5 seconds per move from move one (Round 1 - 4) / 90 minutes + 30 seconds per move from move one (Round 5 - 8)"]
[WhiteFideId "1709410"]
[BlackFideId "1713744"]
[WhiteElo "2111"]
[BlackElo "2006"]

1. c4 {[%clk 01:30:58]} {[%emt 00:00:01]} g6 {[%clk 01:30:51]} {[%emt
00:00:09]} 2. g3 {[%clk 01:31:23]} {[%emt 00:00:05]} Bg7 {[%clk 01:31:12]}
{[%emt 00:00:09]} 3. Bg2 {[%clk 01:31:47]} {[%emt 00:00:06]} d6 {[%clk
01:31:28]} {[%emt 00:00:14]} 4. Nc3 {[%clk 01:32:03]} {[%emt 00:00:14]} Nf6
{[%clk 01:31:39]} {[%emt 00:00:19]} 5. e4 {[%clk 01:32:12]} {[%emt 00:00:22]}
c5 {[%clk 01:30:18]} {[%emt 00:01:50]} 6. Nge2 {[%clk 01:32:24]} {[%emt
00:00:17]} Nc6 {[%clk 01:30:33]} {[%emt 00:00:15]} 7. d3 {[%clk 01:32:13]}
{[%emt 00:00:42]} O-O {[%clk 01:28:06]} {[%emt 00:02:57]} 8. O-O {[%clk
01:32:36]} {[%emt 00:00:06]} Bg4 {[%clk 01:18:10]} {[%emt 00:19:21]} 9. h3
{[%clk 01:32:45]} Bxe2 {[%clk 01:18:31]} 10. Nxe2 {[%clk 01:33:07]} Ne8 {[%clk
01:14:09]} {[%emt 00:00:02]} 11. Rb1 {[%clk 01:29:51]} {[%emt 00:00:19]} Nc7
{[%clk 01:10:10]} {[%emt 00:04:29]} 12. Be3 {[%clk 01:27:45]} {[%emt 00:02:37]}
Ne6 {[%clk 01:10:24]} {[%emt 00:00:17]} 13. f4 {[%clk 01:26:43]} {[%emt
00:01:31]} Ned4 {[%clk 01:07:32]} {[%emt 00:03:22]} 14. f5 {[%clk 01:24:32]}
{[%emt 00:02:42]} Nxe2+ {[%clk 00:48:33]} {[%emt 00:19:28]} 15. Qxe2 {[%emt
00:00:13]} Qa5 {[%clk 00:45:12]} {[%emt 00:03:43]} 16. a3 {[%clk 01:17:50]}
{[%emt 00:07:38]} Qa4 {[%emt 00:03:02]} 17. Qd2 {[%clk 01:10:39]} {[%emt
00:07:26]} Nd4 {[%clk 00:39:24]} {[%emt 00:04:01]} 18. Bxd4 {[%clk 00:59:20]}
{[%emt 00:11:50]} Bxd4+ {[%clk 00:39:42]} {[%emt 00:00:11]} 19. Kh2 {[%clk
00:59:49]} Rab8 {[%clk 00:39:10]} {[%emt 00:01:03]} 20. Bf3 {[%clk 00:58:34]}
{[%emt 00:01:45]} b5 {[%clk 00:34:34]} {[%emt 00:05:05]} 21. Bd1 {[%clk
00:55:19]} {[%emt 00:03:46]} Qa6 {[%clk 00:34:52]} {[%emt 00:00:12]} 22. Bb3
{[%clk 00:55:38]} {[%emt 00:00:12]} b4 {[%clk 00:34:33]} {[%emt 00:00:48]} 23.
a4 {[%clk 00:54:23]} {[%emt 00:01:45]} Qc6 {[%clk 00:33:21]} {[%emt 00:01:42]}
24. Kg2 {[%clk 00:53:34]} {[%emt 00:01:19]} Kh8 {[%clk 00:22:04]} {[%emt
00:11:46]} 25. Rf3 {[%clk 00:50:57]} {[%emt 00:03:08]} gxf5 {[%clk 00:21:08]}
{[%emt 00:01:26]} 26. Rxf5 {[%clk 00:51:16]} {[%emt 00:00:12]} e6 {[%clk
00:20:59]} {[%emt 00:00:38]} 27. Rf3 {[%clk 00:33:24]} {[%emt 00:18:22]} f5
{[%clk 00:14:55]} {[%emt 00:06:33]} 28. Rbf1 {[%clk 00:33:51]} {[%emt
00:00:03]} Rf6 {[%clk 00:12:46]} {[%emt 00:02:39]} 29. Kh2 {[%clk 00:33:42]}
{[%emt 00:00:39]} Rbf8 {[%clk 00:12:53]} {[%emt 00:00:23]} 30. exf5 {[%clk
00:32:55]} {[%emt 00:01:17]} Rxf5 {[%clk 00:12:33]} {[%emt 00:00:50]} 31. Rxf5
{[%clk 00:33:11]} {[%emt 00:00:14]} Rxf5 {[%clk 00:13:01]} {[%emt 00:00:02]} 32.
Rxf5 {[%clk 00:33:27]} {[%emt 00:00:14]} exf5 {[%clk 00:13:24]} {[%emt
00:00:07]} 33. Bd1 {[%clk 00:30:13]} {[%emt 00:03:44]} Qe8 {[%clk 00:13:36]}
{[%emt 00:00:17]} 34. b3 {[%clk 00:29:25]} {[%emt 00:01:20]} Qe3 {[%clk
00:12:51]} {[%emt 00:01:15]} 35. Qxe3 {[%clk 00:29:21]} {[%emt 00:00:34]} Bxe3
{[%clk 00:13:13]} {[%emt 00:00:07]} 36. Kg2 {[%clk 00:29:47]} {[%emt 00:00:04]}
Kg7 {[%clk 00:12:53]} {[%emt 00:00:50]} 37. Kf3 {[%clk 00:30:11]} {[%emt
00:00:06]} Bd4 {[%clk 00:13:16]} {[%emt 00:00:07]} 38. g4 {[%clk 00:28:52]}
{[%emt 00:01:49]} Kf6 {[%clk 00:13:34]} {[%emt 00:00:12]} 39. Kf4 {[%clk
00:25:10]} {[%emt 00:04:11]} Be5+ {[%clk 00:13:18]} {[%emt 00:00:46]} 40. Ke3
{[%clk 00:25:21]} {[%emt 00:00:20]} Bd4+ {[%clk 00:13:30]} {[%emt 00:00:18]} 41.
Kf4 {[%clk 00:25:40]} {[%emt 00:00:11]} Be5+ {[%clk 00:13:53]} {[%emt
00:00:07]} 42. Ke3 {[%clk 00:26:09]} {[%emt 00:00:01]} 1/2-1/2